Cogmind - Beta 17 @@@ ROGUE MODE // 2026.07.28 @ 23:06:23 Player: shockman27 Result: Destroyed self with Grenade Launcher Performance ------------- Evolutions (0) 0 Regions Visited (1) 200 Robots Destroyed (87) 435 Value Destroyed (1371) 1371 Prototype IDs (0) 0 Alien Tech Used (0) 0 Bonus (74) 74 TOTAL SCORE: 2080 Bonus ------- High Alert Combat Kills 74 Cogmind --------- Core Integrity 0/250 Matter 148/300 Energy 160/160 System Corruption 4% Temperature Cool (6) Movement Treading (240) Ox1 Location -10/Materials Parts ------- > --- POWER (1) -------- Light Nuclear Core > --- PROPULSION (2) --- Light Treads Light Treads > --- UTILITY (2) ------ High-capacity Storage Unit > --- WEAPON (2) ------- Grenade Launcher Grenade Launcher > --- INVENTORY (20) --- Ion Engine VTOL Module VTOL Module VTOL Module VTOL Module High-capacity Matter Pod (200) Light EM Pulse Cannon Assault Rifle Autogun Autogun Autogun Autogun Grenade Launcher Grenade Launcher Hammer Peak State ------------ > --- POWER ------------ Light Nuclear Core > --- PROPULSION ------- Light Treads Light Treads > --- UTILITY ---------- Large Storage Unit High-capacity Storage Unit > --- WEAPON ----------- Light EM Pulse Cannon Autogun > --- INVENTORY -------- Ion Engine Light Treads VTOL Module VTOL Module VTOL Module VTOL Module Large Matter Pod Assault Rifle Autogun Autogun Autogun Grenade Launcher Grenade Launcher Hammer [Rating: 13] Favorites ----------- Power Ion Engine Engine Ion Engine Power Core Light Nuclear Core Propulsion Light Treads Treads Light Treads Wheel Wheel Utility High-capacity Storage Unit Device Seismic Detector Storage High-capacity Storage Unit Weapon Grenade Launcher Energy Gun EM Pulse Gun Energy Cannon Light EM Pulse Cannon Ballistic Gun Autogun Launcher Grenade Launcher Impact Weapon Hammer Build | -11 -10 ------- Run | Yrd Mat Slots Evolved . | . . Power . | . . Propulsion . | . . Utility . | . . Weapon . | . . Parts Attached 29 | 8 21 Power 4 | 1 3 Engine 2 | 1 1 Core 2 | . 2 Reactor . | . . Propulsion 6 | 2 4 Treads 5 | 2 3 Leg . | . . Wheel 1 | . 1 Hover . | . . Flight . | . . Utility 4 | 2 2 Device 1 | 1 . Storage 3 | 1 2 Processor . | . . Hackware . | . . Protection . | . . Artifact . | . . Weapon 15 | 3 12 Energy Gun 1 | . 1 Energy Cannon 1 | . 1 Ballistic Gun 9 | 3 6 Ballistic Cannon . | . . Launcher 3 | . 3 Special Weapon . | . . Impact Weapon 1 | . 1 Slashing Weapon . | . . Piercing Weapon . | . . Special Melee Weapon . | . . Unidentified Prototypes . | . . Parts Lost 8 | . 8 Power 1 | . 1 Propulsion 2 | . 2 Utility 1 | . 1 Weapon 4 | . 4 Highest Loss Streak 3 | . 3 To Critical Strikes . | . . Average Backups 12 | 3 12 Power . | . . Propulsion 4 | 1 4 Utility . | . . Weapon 6 | 1 6 Tool/Special . | . . Unused Backups 16 | . 16 Power 2 | . 2 Propulsion 5 | . 5 Utility 3 | . 3 Weapon 6 | . 6 Tool/Special . | . . Average Slot Usage (%) 87 | . 87 Engine 9 | . 9 Core 4 | . 4 Treads 27 | . 27 Device 2 | . 2 Storage 14 | . 14 Energy Gun 1 | . 1 Energy Cannon 2 | . 2 Ballistic Gun 10 | . 10 Launcher 10 | . 10 Impact Weapon 2 | . 2 Peak Build Rating 13 | 7 13 Average Rating 9 | 5 9 On Entrance 3 | . 7 Avg Prop Armor Cover (%) 8 | . 8 Naked Turns . | . . Heaviest Build 52 | 14 52 Greatest Support 40 | 40 40 Greatest Overweight (x) 2 | . 2 Average Overweight (x) . | . . Largest Inventory Capacity 20 | 8 20 Average Capacity 18 | 7 18 Most Carried 15 | 5 15 Average Carried 12 | 3 12 Final Capacity 20 | 8 20 Final Carried 15 | 5 15 Class Distribution -------------------- 96% | Mutant 3% | Scavenger-Mutant Dominant Class ---------------- Mutant | -10/Materials Resources | -11 -10 ----------- Run | Yrd Mat Matter Collected 2480 | 308 2172 Remotely . | . . Salvage Created 2536 | 28 2508 Parts 164 | 7 157 Haulers Intercepted 2 | . 2 Recyclers Shooed 9 | 2 7 Parts Field Recycled . | . . Retrieved Matter . | . . Parts Self-Destructed . | . . Prevented . | . . Parts Restored . | . . Kills | -11 -10 ------- Run | Yrd Mat Combat Hostiles Destroyed 30 | . 30 Guns 14 | . 14 Cannons 4 | . 4 AOE 12 | . 12 Classes Destroyed 9 | 1 8 Worker 18 | . 18 Builder 13 | . 13 Tunneler 4 | 2 2 Hauler 2 | . 2 Recycler 14 | . 14 Operator 3 | . 3 Watcher 3 | . 3 Swarmer 9 | . 9 Grunt 21 | . 21 Best Kill Streak 6 | 1 6 Combat Bots Only 3 | . 3 Max Kills in Single Turn 3 | 1 3 Gunslinging . | . . Exploded 3 | . 3 Melee . | . . Uniques/NPCs Destroyed . | . . Combat | -11 -10 -------- Run | Yrd Mat Hostile Shots Fired 155 | . 155 Missed 47 | . 47 Hits 108 | . 108 Projectile 108 | . 108 Critical Strikes 2 | . 2 Damage Taken 1597 | . 1597 Core 254 | . 254 Absorbed by Shields . | . . Core Remaining (%) 100 | 100 . Volleys Fired 186 | 7 179 Largest 2 | 2 2 Hottest 79 | 40 79 Shots Fired 325 | 14 311 Gun 189 | 14 175 Cannon 34 | . 34 Launcher 102 | . 102 Special . | . . Kinetic 150 | 14 136 Thermal . | . . Explosive 102 | . 102 Electromagnetic 73 | . 73 Robot Hit Streak 15 | 7 15 Robot Miss Streak 4 | 2 4 Penetration Max . | . . Secondary Targets 1 | . 1 Max Gunslinging Chain 1 | . 1 Shots Hit Robots 173 | 10 163 Core Hits 112 | 4 108 Critical Kills . | . . Critical Parts Destroyed 3 | . 3 Critical Strikes 3 | . 3 Smash 3 | . 3 Melee Attacks 15 | . 15 Impact 15 | . 15 Slashing . | . . Piercing . | . . Sneak Attacks 8 | . 8 Combat Hostiles . | . . Follow-up Attacks . | . . Damage Inflicted 4929 | 110 4819 Guns 1703 | 110 1593 Cannons 552 | . 552 Explosions 2236 | . 2236 Melee 424 | . 424 Ramming 14 | . 14 Kinetic 1334 | 110 1224 Thermal 106 | . 106 Explosive 2130 | . 2130 Electromagnetic 921 | . 921 Impact 424 | . 424 Slashing . | . . Piercing . | . . Highest Corruption 4 | . 4 Average Corruption 3 | . 3 Corruption Purged . | . . Corruption Blocked . | . . Effects 80 | . 80 Message Errors 13 | . 13 Matter Fused 23 | . 23 Heat Flow Errors 12 | . 12 Energy Discharges 14 | . 14 Data Loss (minor) 9 | . 9 Data Loss (major) 4 | . 4 Misfires 2 | . 2 Alerts 3 | . 3 Overload Shots . | . . Overflow Damage 295 | . 295 Projectiles 26 | . 26 Explosions 96 | . 96 Melee 173 | . 173 Knockbacks 1 | . 1 Impact 1 | . 1 Kinetic . | . . Secondary . | . . Self-Inflicted Damage 332 | . 332 Shots 16 | . 16 Rammed 1 | . 1 Targets Rammed 1 | . 1 Kicked . | . . Crushed . | . . Highest Temperature 270 | . 270 Average Temperature 59 | . 59 Received Heat Transfer 663 | . 663 Effects 2 | . 2 Interference 2 | . 2 Siege Activations . | . . Martial Activations . | . . Shielding Activations . | . . Robots Disrupted . | . . Combat Hostiles . | . . Robots Corrupted 6 | . 6 Combat Hostiles . | . . Parts Fried 12 | . 12 Impact Corruptions 9 | . 9 Robots Melted . | . . Combat Hostiles . | . . Parts Melted . | . . Heat Transferred 100 | . 100 Parts Sabotaged . | . . Parts Stolen . | . . Parts Stripped . | . . Power Chain Reactions 3 | . 3 Alert | -11 -10 ------- Run | Yrd Mat Maximum Alert Level 4 | . 4 Low Security (%) 51 | 100 50 Level 1 6 | . 7 Level 2 12 | . 12 Level 3 20 | . 20 Level 4 9 | . 9 Level 5 . | . . High Security . | . . Max Security . | . . Peak Influence 1274 | 5 1274 Initial . | . . Average 419 | . 431 Influence Increases 2033 | 10 2023 Destroy 0b10 Robot/C 600 | . 600 Destroy 0b10 Robot/NC 285 | 10 275 Destroy Leader 130 | . 130 Select Force Hacks 30 | . 30 Disable Machine 330 | . 330 Destroy Structure 583 | . 583 Lose Combat Pursuer 75 | . 75 Influence Decreases 745 | 10 735 Time Decay 665 | 10 655 Lost Part 80 | . 80 Squads Dispatched 5 | . 5 Investigation 3 | . 3 Extermination . | . . Reinforcement 2 | . 2 Assault . | . . Garrison . | . . Intercept . | . . Searches Triggered . | . . Construction Impeded . | . . Haulers Reinforced . | . . Active Scanning Responses . | . . Cargo Convoy Interrupts . | . . Stealth | -11 -10 --------- Run | Yrd Mat Distress Signals 2 | . 2 Communications Jammed . | . . Distress Signals . | . . Times Spotted 41 | . 41 Peak Tracking Total 6 | . 6 Tactical Retreats 3 | . 3 Traps | -11 -10 ------- Run | Yrd Mat Traps Triggered 1 | . 1 Indirectly . | . . Trap Hack Attempts . | . . Triggered . | . . Disarmed . | . . Reprogrammed . | . . Reused . | . . Traps Extracted . | . . Installed . | . . Triggered . | . . Machines | -11 -10 ---------- Run | Yrd Mat Machines Disabled 22 | . 22 Max in Single Turn 2 | . 2 Machines Repaired . | . . Machines Dismantled . | . . Machines Sabotaged . | . . Overloaded Fab Kills . | . . Hacking | -11 -10 --------- Run | Yrd Mat Machines Accessed 7 | . 7 Terminals 6 | . 6 Fabricators . | . . Repair Stations . | . . Recycling Units 1 | . 1 Scanalyzers . | . . Garrison Access . | . . Total Hacks 15 | . 15 Successful 4 | . 4 Failed 11 | . 11 Catastrophic 1 | . 1 Database Lockouts . | . . Manual 12 | . 12 Terminals 14 | . 14 Fabricators . | . . Repair Stations . | . . Recycling Units 1 | . 1 Scanalyzers . | . . Garrison Access . | . . Terminal Hacks 1 | . 1 Alert Level 1 | . 1 Fabricator Hacks . | . . Repair Station Hacks . | . . Recycling Unit Hacks . | . . Scanalyzer . | . . Garrison Access Hacks . | . . Unauthorized Hacks 3 | . 3 Terminals 2 | . 2 Botnet 2 | . 2 Fabricators . | . . Repair Stations . | . . Recycling Units 1 | . 1 Tunnel 1 | . 1 Scanalyzers . | . . Garrison Access . | . . Data Cores Recovered . | . . Used . | . . Hacking Detections 5 | . 5 Full Trace Events 4 | . 4 Feedback Events 2 | . 2 Corruption 2 | . 2 Feedback Blocked . | . . Robot Schematics Acquired . | . . Robots Built . | . . Authchips . | . . Time . | . . Total Robot Build Rating . | . . Part Schematics Acquired . | . . Parts Built . | . . Authchips . | . . Time . | . . Total Part Build Rating . | . . Part Studies Acquired . | . . Parts Repaired . | . . Time . | . . Parts Recycled . | . . Recycled Matter . | . . Retrieved Matter . | . . Retrieved Components . | . . Parts Scanalyzed . | . . Part Schematics Acquired . | . . Parts Damaged . | . . Bothacking | -11 -10 ------------ Run | Yrd Mat Used RIF Installer . | . . Robots Hacked . | . . Non-combat . | . . Combat . | . . Robot Hacks Applied . | . . Relay Couplers Released . | . . Fabnet Peak Effective % . | . . Robots Rewired . | . . Allies Hacked . | . . Hacks Repelled . | . . Allies | -11 -10 -------- Run | Yrd Mat Total Allies . | . . Largest Group . | . . Highest-Rated Group . | . . Highest-Rated Ally . | . . Total Orders . | . . Ally Attacks . | . . Total Damage . | . . Kills . | . . Allies Corrupted . | . . Allies Melted . | . . Intel | -11 -10 ------- Run | Yrd Mat Active Infowar (turns) 944 | 29 915 Seismic 944 | 29 915 Robot Analysis Total . | . . Derelict Logs Recovered . | . . Drone Launches . | . . Drone Recoveries . | . . Exploration | -11 -10 ------------- Run | Yrd Mat Turns Passed 4630 | 131 4499 Spaces Moved 1843 | 61 1782 Core 2 | 2 . Treads 1819 | 59 1760 Legs . | . . Wheels 22 | . 22 Hover . | . . Flight . | . . Fastest Speed 50 | 50 110 Average Speed 213 | 156 214 Slowest Speed 240 | 160 240 Overloaded Moves . | . . Propulsion Burnouts . | . . Robots Hopped . | . . Potential Cave-ins . | . . Cave-ins Triggered . | . . Exploration Rate (%) 51 | 4 99 Regions Visited 1 Branch Regions . Pre-discovered Areas 1 | . 1 Known Exits Taken . | . . Unknown Exits Taken 1 | 1 . Scrap Searched . | . . Spaces Dug 5 | . 5 Terrain Destroyed 642 | . 642 Melee 5 | . 5 Projectile . | . . AOE 637 | . 637 Terrain Rammed . | . . Walls Destroyed . | . . Machines Disabled . | . . Actions | -11 -10 --------- Run | Yrd Mat Total 2209 | 81 2128 Wait 76 | 1 75 Move 1842 | 60 1782 Hop . | . . Pick Up 32 | 5 27 Fast Attach 8 | 6 2 Attach 8 | 1 7 Detach 2 | . 2 Swap 21 | 1 20 Drop 18 | . 18 Fire 186 | 7 179 Melee 15 | . 15 Ram . | . . Kick . | . . Crush 1 | . 1 Escape Stasis . | . . Rewire . | . . Trap . | . . Miscellaneous . | . . Route ------- -11/Scrapyard -10/Materials (discovered 5 exits: [*Mat x3] / [*Min] / [*Sub]) History --------- Turn | Location | Event 61 | -11/Scrapyard | Discovered new exit (range 12) 132 | -11/Scrapyard | Entered Materials 315 | -10/Materials | Build established: Mutant 336 | -10/Materials | Discovered new exit (range 9) 666 | -10/Materials | Core integrity fell below 50% 701 | -10/Materials | Discovered new exit (range 16) 826 | -10/Materials | Lost 3 parts (1n2w) 1176 | -10/Materials | Discovered new exit (range 9) 1296 | -10/Materials | Discovered new exit (range 5) 1906 | -10/Materials | Discovered new exit (range 15) 3450 | -10/Materials | Core integrity fell below 20% 4631 | -10/Materials | Destroyed self with Grenade Launcher Last Messages --------------- 04492_ K-01 Serf cleans the Terminal. 04493_ U-05 Engineer builds a Wall. 04496_ K-01 Serf destroyed. 04496_ U-05 Engineer destroyed. 04499_ The unstable cave ceiling collapses. 04502_ K-01 Serf collects debris. 04519_ Neutrino Reactor explodes. 04523_ The unstable cave ceiling collapses. 04523_ Unknown Engine crushed. 04524_ System corrupted: Matter fused (-6). 04531_ The unstable cave ceiling collapses. 04563_ System corrupted: Energy discharge (-41). 04581_ XERVH5VX5TRIM4%0,PJX 04594_ U-05 Engineer builds a Wall. 04598_ The unstable cave ceiling collapses. 04621_ System corrupted: Component data lost. 04626_ K-01 Serf collects debris. 04631_ Destroyed Welding Torch. 04631_ Destroyed Unknown Engine. 04631_ U-05 Engineer destroyed. Map ----- +----------------------------------------------------+ | ??????????????## "" ""#????????????????###### | | ??????????##### Y"#????????????????????## | | ????????### # ""#??????#####?????????# | | ??????### # # # ##?????# #?????????# | | ????#### ! ####+# # ?????# < #?????????# | | ????# # ###### #??########## | | ????# # # # ## #?## < # | | ????# # #### # """ ## #?# | | ????# # ## # | ## ### # | | ???## ### ## ! ## ### # # | | ???# ##+####### # ==# # # # # | | ???# % " # = # T" # # | | ???# + =*# " ########### | | ???# ####### # # ## # | | #####+##" ## ## # # # | | # " # # ######+##/#####[# "# | | # T " # / #*# "# | | # " ## # # =#%# "# | | # " # ## # """"=# # # | | # " # # # [ """"" # # #####+#### | | # """ ######## ## # k * """"" # | | # """ ## # ! ! | | # """ # # # # %!= | | ######### ] # T" = ######## | | # """ # # ### ! " ###??# | | # """"" # @ %= ! ##?????# | | # """"" # k ####### | | # """"" # ## [ # ! | | # """ # ## ## ## ### %# """" #= | | # # # ## # # """ " | | # ######## ###?# #= # """"" # | | # #??????##????# +== # | | # #????????????# # "# | | # [ #???????###### # ! ! T# | | # #??????### # ############ #% "# | | #######+######## ################= # | | ???# ######### | | ???# < ###?????# | | ???# ##????# | | ???########### ###+########### # ### ####?# | | ############## "! #??????### # #?# | | # ## # | ##??????## "" ### | | ! ### " # # #??????# """# # | | # " [%# ##??????# R"# # | | # # # #??????## # """# # | | # # #! #??????# # + # # | | # # ########??????## ##+####### | | # # [#??????????# # # | | # # #??????????## # # | | #####+## ]]#??????????## # + | +----------------------------------------------------+ Best States ------------- Heat Dissipation 25 Energy Generation 14 Energy Capacity 250 Matter Stores 300 Matter Capacity 300 Sight Range 16 Terrain Scan Density 10 Evasion (%) 40 Recoil Reduction 2 Item Schematics ----------------- None Robot Schematics ------------------ None Fabricated ------------ Nothing Repaired ---------- Nothing Studied --------- None Alien Tech Used ----------------- None Achievements -------------- None Challenges ------------ None Game ------ Seed BlanketMasterRailcannon Manual? 0 Play Time 00:24:30 Cumulative 270.2 hours Start 2026.07.27 @ 22:35:28 End 2026.07.28 @ 23:06:23 Sessions 2 Manual Loads 0 Difficulty Rogue Special Mode None Game No. 142 Rogue 138 Adventurer 4 Explorer 0 Win Type - Total 6 Types 3/0/1/1/0/0/0/1/0/0 Lore% 80 Gallery% 70 Achievement% 55 Wizard Run 0 Options --------- Layout 0 ASCII 0 Keyboard 1 Movement Vi Keybinds 0 Fullscreen 2 Font 24/Crisp Map View 76x50 Zoom Use 5% Tactical HUD 1 Map Filters NONE Filters NONE Steam 1 RUN: 06e873e3-046e-4540-8146-03d7528be841